bitfinex/quotes_SOLUSD_20240620
["timestamp","ask_amount","ask_price","bid_price","bid_amount"]
[1718857845663,7.4772,133.74,133.68,6.1626]
[1718857845866,7.4778,133.73,133.68,6.1626]
[1718857846781,47.2607271,133.77,133.68,6.1626]
[1718857846976,0.17,133.75,133.68,6.1626]
[1718857847287,7.4779,133.73,133.68,6.1626]
[1718857847803,7.4794,133.71,133.66,16.2719]
[1718857847969,0.17,133.73,133.66,16.2719]
[1718857848278,7.4798,133.7,133.66,16.2719]
[1718857848479,39.2044,133.73,133.66,16.2719]
[1718857848686,20.17,133.73,133.66,16.2719]
[1718857849070,7.4791,133.71,133.66,16.2719]
[1718857849270,20.17,133.73,133.66,16.2719]
[1718857850081,7.4794,133.7,133.66,16.2719]
[1718857850592,7.479,133.71,133.66,16.2719]
[1718857850969,27.4796,133.7,133.66,16.2719]
[1718857851169,7.4801,133.69,133.66,16.2719]
[1718857851369,7.4796,133.7,133.66,16.2719]
[1718857851588,7.479,133.71,133.66,16.2719]
[1718857851895,20.0,133.7,133.66,16.2719]
[1718857852068,7.4793,133.71,133.66,16.2719]
[1718857853386,7.6478,133.73,133.66,16.2719]
[1718857853577,27.4786,133.72,133.66,16.2719]
[1718857853975,22.63,133.74,133.66,16.2719]
[1718857854282,7.4771,133.75,133.67,0.17]
[1718857854492,27.4772,133.74,133.67,0.17]
[1718857855072,7.4785,133.72,133.66,16.2719]
[1718857855279,7.4781,133.73,133.66,16.2719]
[1718857855483,27.4772,133.74,133.66,16.2719]
[1718857857488,27.4772,133.74,133.67,0.17]
[1718857857986,7.4777,133.73,133.66,16.2719]
[1718857858191,20.0,133.72,133.66,16.2719]
[1718857858506,0.17,133.73,133.66,16.2719]
[1718857858507,7.4801,133.69,133.66,16.2719]
[1718857858798,7.4796,133.7,133.66,16.2719]
[1718857859274,19.3746,133.73,133.66,16.2719]
[1718857859474,7.54,133.67,133.66,16.2719]
[1718857861388,22.79,133.71,133.63,15.4964]
[1718857861573,7.4803,133.69,133.63,15.4964]
[1718857862580,7.4787,133.72,133.64,6.6556]
[1718857862884,7.93008009,133.73,133.65,0.34]
[1718857863081,20.0,133.72,133.65,0.51]
[1718857863491,27.4773,133.74,133.65,0.51]
[1718857864084,0.45238009,133.76,133.68,0.17]
[1718857864282,0.45238009,133.76,133.68,0.68]
[1718857864577,0.45238009,133.76,133.68,0.51]
[1718857864772,7.92878009,133.76,133.68,0.51]
[1718857865181,0.45238009,133.76,133.67,6.6494]
[1718857865699,7.4768,133.75,133.68,0.51]
[1718857865899,7.4768,133.75,133.68,0.17]
[1718857866080,7.4773,133.74,133.67,6.6494]
[1718857866280,7.4767,133.75,133.67,6.6494]
[1718857866485,7.4767,133.75,133.68,0.17]
[1718857867092,7.4773,133.74,133.67,6.6494]
[1718857870002,0.62238009,133.76,133.67,6.6494]
[1718857870003,7.4778,133.73,133.67,6.6494]
[1718857870213,7.4792,133.71,133.67,6.6494]
[1718857871486,0.17,133.73,133.66,16.1315]
[1718857871702,7.4806,133.68,133.63,15.0759]
[1718857872207,23.07238009,133.72,133.63,15.0759]
[1718857872385,20.0,133.71,133.63,15.0759]
[1718857873206,7.6498,133.7,133.63,15.0759]
[1718857873604,27.479,133.71,133.63,15.0759]
[1718857875090,7.4796,133.7,133.63,15.0759]
[1718857875405,7.48,133.69,133.63,15.0759]
[1718857875602,7.4811,133.67,133.63,15.0759]
[1718857876287,0.17,133.7,133.63,15.0759]
[1718857877303,20.0,133.71,133.63,15.0759]
[1718857877707,27.4791,133.71,133.63,15.0759]
[1718857877887,20.0,133.71,133.64,0.34]
[1718857878091,20.0,133.71,133.65,0.17]
[1718857878494,27.4789,133.71,133.65,0.17]
[1718857879309,15.163,133.77,133.66,21.7331]
[1718857879310,22.62,133.75,133.66,21.7331]
[1718857879491,7.478,133.73,133.66,21.7331]
[1718857880005,7.4793,133.71,133.66,21.7331]
[1718857881612,7.4785,133.72,133.66,21.7331]
[1718857881995,7.4792,133.71,133.66,21.7331]
[1718857882196,7.4785,133.72,133.66,21.7331]
[1718857884392,8.10028009,133.73,133.66,21.7331]
[1718857884594,0.45238009,133.73,133.66,21.7331]
[1718857884792,7.93018009,133.73,133.66,21.7331]
[1718857884993,7.93018009,133.73,133.67,0.17]
[1718857885598,7.93038009,133.73,133.66,21.7331]
[1718857886289,0.45238009,133.73,133.67,0.17]
[1718857886500,27.4769,133.75,133.67,0.51]
[1718857886913,20.0,133.75,133.67,0.51]
[1718857887210,27.4767,133.75,133.67,0.51]
[1718857887791,20.0,133.75,133.67,0.51]
[1718857888195,27.4766,133.75,133.67,0.51]
[1718857888811,7.478,133.73,133.66,21.7331]
[1718857889612,7.92968009,133.74,133.66,21.7331]
[1718857889805,7.478,133.73,133.66,21.7331]
[1718857889996,0.45238009,133.74,133.66,21.7331]
[1718857890190,20.0,133.75,133.68,0.17]
[1718857890613,7.4775,133.74,133.67,0.17]
[1718857890802,7.478,133.73,133.66,21.7331]
[1718857891202,16.3914,133.74,133.64,16.5675]
[1718857891409,7.4819,133.66,133.64,16.5675]
[1718857893012,18.8717,133.68,133.6,21.3908]
[1718857893196,20.51,133.67,133.6,21.3908]
[1718857893396,7.4835,133.63,133.6,21.3908]
[1718857894006,7.483,133.64,133.6,21.3908]
[1718857894212,7.4823,133.65,133.6,21.3908]
[1718857894397,20.0,133.64,133.6,21.3908]
[1718857895310,27.4822,133.65,133.6,21.3908]
[1718857895504,27.4822,133.65,133.6,22.3908]
[1718857896007,20.0,133.65,133.6,22.3908]
[1718857896215,7.484,133.62,133.6,16.256]
[1718857896599,7.4835,133.63,133.6,16.256]
[1718857898297,0.17,133.65,133.6,16.256]
[1718857898503,26.1955,133.61,133.6,1.0]
[1718857898921,46.1955,133.61,133.6,1.0]
[1718857899095,69.1555,133.61,133.6,1.0]
[1718857899802,50.1044,133.61,133.6,1.0]
[1718857901518,50.2744,133.61,133.6,1.0]
[1718857902031,50.1044,133.61,133.6,1.0]
[1718857903028,42.62,133.61,133.6,1.0]
[1718857903239,20.0,133.61,133.6,1.0]
[1718857904227,27.4844,133.61,133.6,1.0]
[1718857904837,20.0,133.61,133.6,1.0]
[1718857905320,7.4834,133.63,133.6,1.0]
[1718857905522,38.8394,133.68,133.6,1.0]
[1718857905523,7.483,133.64,133.6,1.0]
[1718857907227,7.4823,133.65,133.6,1.0]
[1718857907541,20.0,133.64,133.6,1.0]
[1718857907909,7.4836,133.63,133.6,1.0]
[1718857908719,7.4829,133.64,133.6,1.0]
[1718857909105,20.0,133.66,133.6,1.0]
[1718857909311,7.4826,133.65,133.6,1.0]
[1718857909536,20.0,133.64,133.6,1.0]
[1718857909707,27.483,133.64,133.6,1.0]
[1718857910247,20.0,133.64,133.6,1.0]
[1718857911131,30.101,133.68,133.6,1.0]
[1718857911132,7.4822,133.65,133.6,1.0]
[1718857912136,7.4828,133.64,133.6,1.0]
[1718857912435,7.4823,133.65,133.6,1.0]
[1718857914036,7.4818,133.66,133.6,1.0]
[1718857915135,27.4812,133.67,133.61,0.34]
[1718857917123,22.62,133.71,133.64,0.17]
[1718857917329,7.4799,133.7,133.64,6.9745]
[1718857919338,36.20455599,133.74,133.64,6.9745]
[1718857919546,20.0,133.73,133.65,0.17]
[1718857919754,7.4785,133.72,133.66,0.17]
[1718857920044,7.4785,133.72,133.66,0.34]
[1718857920250,7.479,133.71,133.66,0.51]
[1718857920455,13.58455599,133.74,133.64,6.4645]
[1718857920456,7.4802,133.69,133.64,6.4645]
[1718857920743,7.4806,133.68,133.64,6.4645]
[1718857921526,7.4801,133.69,133.64,6.4645]
[1718857922061,7.4792,133.71,133.65,0.34]
[1718857922426,7.4794,133.7,133.65,0.34]
[1718857922836,7.48,133.69,133.64,6.4645]
[1718857923159,22.62,133.72,133.64,6.4645]
[1718857923451,7.4798,133.7,133.64,6.4645]
[1718857924356,27.4789,133.71,133.65,0.17]
[1718857924652,7.4796,133.7,133.64,6.4645]
[1718857924838,27.479,133.71,133.64,6.4645]
[1718857925351,27.479,133.71,133.65,0.51]
[1718857926546,20.0,133.71,133.65,0.51]
[1718857926738,7.4783,133.72,133.66,16.3685]
[1718857926933,22.62,133.75,133.68,0.17]
[1718857927139,22.62,133.75,133.69,6.2915]
[1718857927345,7.4762,133.76,133.7,16.8785]
[1718857927549,15.00551493,133.77,133.7,16.8785]
[1718857927732,7.4762,133.76,133.7,16.8785]
[1718857929240,7.4766,133.75,133.7,16.8785]
[1718857930056,7.4763,133.76,133.7,16.8785]
[1718857931358,7.52981493,133.81,133.7,16.8785]
[1718857931359,22.62,133.83,133.74,0.17]
[1718857931533,22.62,133.83,133.74,0.34]
[1718857931740,7.4738,133.8,133.74,0.34]
[1718857931940,7.4734,133.81,133.74,0.34]
[1718857932338,7.4721,133.83,133.77,6.0293]
[1718857932630,7.4722,133.83,133.77,6.0293]
[1718857933641,0.17,133.84,133.77,6.0293]
[1718857933955,7.4734,133.81,133.77,6.0293]
[1718857934361,7.4739,133.8,133.77,6.0293]
[1718857934539,7.4735,133.81,133.77,6.0293]
[1718857934736,22.62,133.83,133.77,6.0293]
[1718857934947,20.0,133.82,133.77,6.0293]
[1718857935140,7.4733,133.81,133.77,6.0293]
[1718857935340,7.4739,133.8,133.77,6.0293]
[1718857935942,20.0,133.82,133.77,6.0293]
[1718857936243,7.4738,133.81,133.77,6.0293]
[1718857936651,27.4728,133.82,133.77,6.0293]
[1718857936844,7.4734,133.81,133.77,6.0293]
[1718857937044,27.4729,133.82,133.77,6.0293]
[1718857937766,20.0,133.82,133.77,6.0293]
[1718857938060,20.0,133.83,133.77,6.0293]
[1718857938253,20.0,133.84,133.77,6.0293]
[1718857938459,0.17,133.83,133.77,6.0293]
[1718857938655,7.4729,133.82,133.77,6.0293]
[1718857939155,41.4678,133.85,133.77,6.0293]
[1718857939342,7.4723,133.83,133.77,6.0293]
[1718857939544,20.0,133.82,133.77,6.0293]
[1718857940144,27.473,133.82,133.77,6.0293]
[1718857940350,20.0,133.82,133.77,6.0293]
[1718857940551,7.4726,133.83,133.77,6.0293]
[1718857940762,27.4727,133.82,133.77,6.0293]
[1718857941061,7.4727,133.82,133.77,6.0293]
[1718857941449,20.0,133.84,133.77,6.0293]
[1718857941754,7.4733,133.81,133.77,6.0293]
[1718857941963,0.17,133.84,133.77,6.0293]
[1718857942158,7.4723,133.83,133.77,6.0293]
[1718857942458,7.4726,133.83,133.77,6.0293]
[1718857942654,7.4727,133.82,133.77,6.0293]
[1718857943052,7.4723,133.83,133.77,6.0293]
[1718857944059,7.4727,133.82,133.77,6.0293]
[1718857944852,20.0,133.81,133.76,16.3224]
[1718857945054,7.4747,133.79,133.76,16.3224]
[1718857945248,22.62,133.8,133.74,6.1859]
[1718857945562,7.4757,133.77,133.74,6.1859]
[1718857945756,20.0,133.79,133.74,6.1859]
[1718857946156,27.4744,133.79,133.74,6.1859]
[1718857946664,20.0,133.79,133.74,6.1859]
[1718857947663,27.4747,133.79,133.74,6.1859]
[1718857947851,7.4764,133.76,133.74,6.1859]
[1718857948050,20.0,133.79,133.74,6.1859]
[1718857948254,7.4751,133.78,133.74,6.1859]
[1718857948655,27.4745,133.79,133.74,6.1859]
[1718857949545,20.0,133.79,133.74,6.1859]
[1718857949751,27.4744,133.79,133.74,6.1859]
[1718857950252,20.0,133.79,133.74,6.1859]
[1718857950458,65.30451493,133.84,133.74,6.1859]
[1718857950652,7.4738,133.8,133.74,6.1859]
[1718857951570,7.4744,133.79,133.74,6.1859]
[1718857951770,0.51,133.83,133.74,6.1859]
[1718857951978,18.6844,133.81,133.74,6.1859]
[1718857952268,7.4747,133.79,133.74,6.1859]
[1718857952461,27.4752,133.78,133.74,6.1859]
[1718857952657,17.59541893,133.78,133.74,6.1859]
[1718857953177,10.12021893,133.78,133.74,6.1859]
[1718857953873,7.474,133.8,133.74,6.1859]
[1718857954661,7.4745,133.79,133.74,6.1859]
[1718857954868,27.475,133.78,133.74,6.1859]
[1718857955468,20.0,133.78,133.74,6.1859]
[1718857956173,27.475,133.78,133.74,6.1859]
[1718857956374,20.0,133.78,133.74,6.1859]
[1718857956681,27.4741,133.8,133.74,6.1859]
[1718857957081,7.473,133.82,133.75,0.17]
[1718857957274,7.473,133.82,133.75,0.51]
[1718857957577,7.473,133.82,133.76,15.9293]
[1718857957788,7.4734,133.81,133.76,15.9293]
[1718857958168,7.474,133.8,133.76,15.9293]
[1718857958779,18.6766,133.86,133.77,0.17]
[1718857958983,20.0,133.85,133.77,0.51]
[1718857959773,7.4722,133.83,133.77,0.51]
[1718857961981,20.0,133.85,133.77,0.51]
[1718857962180,20.0,133.85,133.79,16.0871]
[1718857962360,7.4699,133.87,133.79,16.0871]
[1718857962561,27.4707,133.86,133.79,16.0871]
[1718857962804,7.4707,133.86,133.8,0.91354672]
[1718857964070,7.4712,133.85,133.8,0.91354672]
[1718857964282,20.0,133.88,133.81,0.17]
[1718857964485,7.4705,133.86,133.81,0.17]
[1718857965391,20.0,133.88,133.8,0.34]
[1718857965601,7.4708,133.86,133.8,0.34]
[1718857965803,7.4708,133.86,133.81,0.17]
[1718857969281,7.471,133.85,133.8,0.34]
[1718857969607,7.4707,133.86,133.8,0.34]
[1718857969979,7.4699,133.87,133.81,0.17]
[1718857970336,27.4705,133.86,133.81,0.17]
[1718857970495,20.0,133.86,133.81,0.34]
[1718857971097,20.0,133.86,133.79,16.0871]
[1718857971603,7.4714,133.85,133.79,16.0871]
[1718857972590,27.4706,133.86,133.8,0.17]
[1718857972783,7.471,133.85,133.79,16.0871]
[1718857972985,7.471,133.85,133.8,1.49288154]
[1718857973188,7.4692,133.89,133.8,0.34]
[1718857973495,20.0,133.88,133.83,22.503]
[1718857973692,7.4685,133.9,133.83,22.503]
[1718857973878,20.0,133.89,133.83,22.503]
[1718857974080,38.6706,133.91,133.83,22.503]
[1718857974490,7.4687,133.9,133.83,22.503]
[1718857974794,27.4678,133.91,133.84,0.17]
[1718857974981,20.0,133.91,133.84,0.68]
[1718857975896,27.4678,133.91,133.84,0.68]
[1718857977673,20.0,133.91,133.84,0.68]
[1718857977895,18.6639,133.95,133.85,16.2314]
[1718857977896,7.4666,133.93,133.85,16.2314]
[1718857978095,20.0,133.92,133.86,0.51]
[1718857978295,27.4673,133.92,133.86,0.51]
[1718857978806,7.4677,133.91,133.86,0.51]
[1718857978989,7.4682,133.9,133.86,0.34]
[1718857979191,7.4682,133.9,133.85,16.2314]
[1718857979579,7.4679,133.91,133.85,16.2314]
[1718857979780,20.0,133.92,133.85,16.2314]
[1718857979995,20.0,133.93,133.85,16.2314]
[1718857980175,7.4684,133.9,133.85,16.2314]
[1718857980379,18.6705,133.91,133.85,16.2314]
[1718857980899,20.0,133.9,133.85,16.2314]
[1718857981095,27.4686,133.9,133.85,16.2314]
[1718857981316,7.4686,133.9,133.85,16.2314]
[1718857981899,20.0,133.92,133.86,0.17]
[1718857982204,7.4667,133.93,133.86,0.51]
[1718857982394,20.0,133.92,133.86,2.00123131]
[1718857982588,20.0,133.92,133.87,6.6472]
[1718857982798,110.0,134.04,133.87,6.6472]
[1718857982799,15.5731,134.06,133.93,0.17]
[1718857982985,7.4611,134.03,133.93,0.68]
[1718857983187,38.1931,134.06,133.93,0.68]
[1718857983426,7.4631,134.0,133.93,0.68]
[1718857984288,7.4623,134.01,133.93,0.68]
[1718857984597,7.4617,134.02,133.93,0.68]
[1718857985800,7.4606,134.04,133.94,22.8668]
[1718857985987,20.0,134.03,133.95,0.68]
[1718857986401,15.5448,134.12,133.97,6.3183]
[1718857986584,7.4588,134.07,133.98,17.2285]
[1718857987297,41.2629,134.1,133.98,17.2285]
[1718857987607,7.4588,134.07,133.98,17.2285]
[1718857988099,18.646,134.08,133.98,16.8885]
[1718857988305,42.62,134.07,133.98,16.5485]
[1718857988607,7.46,134.05,133.98,16.5485]
[1718857990294,7.4606,134.04,133.98,16.5485]
[1718857990684,7.46,134.05,133.98,16.5485]
[1718857991088,27.4589,134.07,133.99,0.51]
[1718857991294,7.4596,134.06,133.99,0.34]
[1718857991496,20.0,134.05,133.99,0.34]
[1718857991684,20.0,134.05,133.99,0.17]
[1718857991889,20.0,134.05,133.99,0.34]
[1718857992304,27.4603,134.05,133.98,16.5485]
[1718857992595,7.4605,134.04,133.98,16.5485]
[1718857992800,27.46,134.05,133.98,16.5485]
[1718857992993,20.0,134.05,133.98,16.5485]
[1718857993400,20.0,134.07,133.98,16.5485]
[1718857993801,7.4602,134.05,133.98,16.5485]
[1718857994009,27.4589,134.07,133.99,0.34]
[1718857994311,27.4589,134.07,133.99,0.51]
[1718857994809,7.4601,134.05,133.99,0.34]
[1718857995491,20.0,134.07,133.99,0.34]
[1718857995695,20.0,134.09,133.99,0.34]
[1718857995900,7.4591,134.07,133.99,0.34]
[1718857996207,20.0,134.09,134.0,0.17]
[1718857996412,7.4588,134.07,134.0,0.17]
[1718857996598,7.4588,134.07,133.99,0.34]
[1718857997615,7.4584,134.08,134.0,0.17]
[1718857997823,20.0,134.07,134.0,0.34]
[1718857998001,27.4579,134.09,134.02,0.17]
[1718857998194,27.4579,134.09,134.01,6.3533]
[1718857999318,7.4575,134.1,134.02,16.5926]
[1718857999813,7.4584,134.08,134.02,16.2526]
[1718858000011,24.64999469,134.14,134.03,0.17]
[1718858000207,42.62,134.13,134.02,16.2526]
[1718858000811,7.4581,134.09,134.02,16.2526]
[1718858001009,7.4573,134.1,134.03,0.17]
[1718858001202,18.6411,134.12,134.03,0.34]
[1718858001406,7.4579,134.09,134.02,16.2526]
[1718858002397,7.4572,134.1,134.02,16.2526]
[1718858002603,7.4572,134.1,134.03,0.17]
[1718858003216,7.4577,134.09,134.03,0.17]
[1718858003703,7.4573,134.1,134.03,0.17]
[1718858003909,7.4577,134.09,134.02,16.2526]
[1718858005620,0.17,134.09,134.02,16.2526]
[1718858005818,22.62,134.07,133.99,15.6925]
[1718858006029,7.461,134.03,133.99,15.6925]
[1718858006322,7.4616,134.02,133.99,15.6925]
[1718858006520,7.4612,134.03,133.99,15.6925]
[1718858007019,22.62,134.04,133.99,15.6925]
[1718858007214,30.0808,134.04,133.99,15.6925]
[1718858007414,7.4611,134.03,133.99,15.6925]
[1718858008517,30.0805,134.04,133.99,15.6925]
[1718858009013,7.4596,134.06,133.99,15.6925]
[1718858009214,22.62,134.08,133.99,15.6925]
[1718858009521,20.0,134.07,133.99,15.6925]
[1718858009721,7.4601,134.05,133.99,15.6925]
[1718858009923,38.6483,134.07,133.99,15.6925]
[1718858010105,7.4595,134.06,133.99,15.6925]
[1718858011408,7.46,134.05,133.99,15.6925]
[1718858011709,7.4595,134.06,133.99,15.6925]
[1718858012110,7.4599,134.05,133.99,15.6925]
[1718858012827,7.4604,134.04,133.99,15.6925]
[1718858013023,22.0469,134.06,133.98,0.10021788]
[1718858013232,7.4632,133.99,133.98,0.10021788]
[1718858013734,22.62,134.02,133.98,0.10021788]
[1718858013735,7.4628,134.0,133.98,0.10021788]
[1718858014630,22.62,134.02,133.98,0.10021788]
[1718858014824,7.4611,134.03,133.98,0.10021788]
[1718858015226,7.4617,134.02,133.98,0.10021788]
[1718858015633,7.4611,134.03,133.98,0.10021788]
[1718858016010,18.65,134.05,133.98,0.10021788]
[1718858016215,18.6525,134.03,133.98,0.10021788]
[1718858016430,41.2725,134.03,133.98,0.10021788]
[1718858016613,7.4632,133.99,133.98,0.10021788]
[1718858016812,7.4629,134.0,133.98,0.10021788]
[1718858017220,7.4621,134.02,133.98,0.10021788]
[1718858017420,20.0,134.01,133.98,0.10021788]
[1718858017827,20.0,134.02,133.98,0.10021788]
[1718858018022,7.4624,134.01,133.98,0.10021788]
[1718858018433,7.4628,134.0,133.98,0.10021788]
[1718858018614,38.6541,134.02,133.98,0.10021788]
[1718858018817,7.4632,133.99,133.98,0.10021788]
[1718858019320,20.0,134.02,133.98,0.10021788]
[1718858019719,27.4619,134.02,133.98,0.10021788]
[1718858019923,20.0,134.02,133.98,0.10021788]
[1718858020120,7.4628,134.0,133.98,0.10021788]
[1718858020322,7.4632,133.99,133.98,0.10021788]
[1718858020722,20.0,134.02,133.98,0.10021788]
[1718858021037,7.4624,134.01,133.98,0.10021788]
[1718858021241,20.0,134.02,133.98,0.10021788]
[1718858021534,22.62,134.06,133.98,0.10021788]
[1718858021738,20.0,134.05,133.98,0.10021788]
[1718858022130,7.4602,134.05,133.99,6.306]
[1718858022334,7.4602,134.05,134.0,15.1132]
[1718858022531,22.62,134.08,134.0,15.1132]
[1718858023034,18.647,134.07,134.0,15.1132]
[1718858023221,22.62,134.08,134.0,15.1132]
[1718858023420,7.4596,134.06,134.0,15.1132]
[1718858023636,7.4599,134.05,134.0,15.1132]
[1718858023829,7.4594,134.06,134.0,15.1132]
[1718858024032,7.46,134.05,134.0,15.1132]
[1718858024215,7.4606,134.04,134.0,15.1132]
[1718858024420,18.647,134.07,134.0,15.1132]
[1718858024421,7.46,134.05,134.0,15.1132]
[1718858024920,22.62,134.08,134.0,15.1132]
[1718858025245,7.4593,134.06,134.0,15.1132]
[1718858025936,7.4589,134.07,134.0,15.1132]
[1718858026138,7.4597,134.06,134.0,15.1132]
[1718858026340,22.62,134.08,134.0,15.1132]
[1718858026549,20.0,134.07,134.0,15.1132]
[1718858026840,7.4603,134.05,134.0,15.1132]
[1718858027024,7.4595,134.06,134.0,15.1132]
[1718858027534,7.4594,134.06,134.0,15.1132]
[1718858027721,7.4607,134.04,134.0,15.1132]
[1718858027926,7.4603,134.05,134.0,15.1132]
[1718858028448,22.62,134.06,134.0,15.1132]
[1718858028927,7.4584,134.08,134.0,15.1132]
[1718858029331,30.0778,134.09,134.0,15.1132]
[1718858029536,27.4582,134.08,134.01,0.17]
[1718858029831,7.4573,134.1,134.01,0.17]
[1718858030042,7.4578,134.09,134.01,0.68]
[1718858030362,7.4584,134.08,134.01,0.51]
[1718858030543,7.4572,134.1,134.01,0.34]
[1718858030924,7.4572,134.1,134.02,6.4304]
[1718858031126,18.6385,134.14,134.03,16.2876]
[1718858031343,20.0,134.13,134.03,16.2876]
[1718858031531,7.4571,134.1,134.03,16.2876]
[1718858031727,7.4569,134.11,134.03,16.2876]
[1718858032040,42.62,134.13,134.03,16.1176]
[1718858032241,7.4573,134.1,134.03,16.1176]
[1718858032950,7.4574,134.1,134.03,16.1176]
[1718858033148,7.4566,134.11,134.03,16.1176]
[1718858033938,7.4561,134.12,134.03,16.1176]
[1718858034448,7.4565,134.11,134.03,16.1176]
[1718858035022,7.4562,134.12,134.03,16.1176]
[1718858035226,20.0,134.13,134.05,16.0014]
[1718858035427,27.4558,134.13,134.05,16.0014]
[1718858035824,20.0,134.13,134.1,0.10021788]
[1718858036045,7.4565,134.11,134.1,0.10021788]
[1718858036238,27.4565,134.11,134.1,0.10021788]
[1718858036446,20.0,134.11,134.1,0.10021788]
[1718858036646,22.62,134.12,134.1,0.10021788]
[1718858036838,7.4565,134.11,134.1,0.10021788]
[1718858037034,30.0761,134.12,134.1,0.10021788]
[1718858037550,7.4565,134.11,134.1,0.10021788]
[1718858037757,26.2679,134.11,134.1,0.10021788]
[1718858037937,46.7779,134.11,134.1,0.10021788]
[1718858038261,50.0765,134.11,134.1,0.10021788]
[1718858038836,50.2465,134.11,134.1,0.10021788]
[1718858039058,69.2279,134.11,134.1,0.10021788]
[1718858039352,7.4595,134.06,134.02,15.4614]
[1718858039537,30.0791,134.07,134.02,15.4614]
[1718858040146,22.62,134.07,134.02,15.4614]
[1718858040336,20.0,134.06,134.02,15.4614]
[1718858040529,7.4601,134.05,134.02,15.4614]
[1718858040731,7.461,134.03,134.02,15.4614]
[1718858041159,7.461,134.03,133.98,15.8779]
[1718858041358,22.62,134.04,133.98,15.8779]
[1718858041658,30.0802,134.05,133.98,15.8779]
[1718858042164,7.4605,134.04,133.98,15.8779]
[1718858042464,20.0,134.06,133.98,15.8779]
[1718858042663,21.399,134.12,134.0,0.17]
[1718858042861,21.53143032,134.13,134.02,16.3115]
[1718858042862,7.4583,134.08,134.02,16.3115]
[1718858043038,22.62,134.1,134.02,16.3115]
[1718858043437,20.0,134.11,134.02,16.3115]
[1718858043438,22.62,134.07,134.02,16.3115]
[1718858043658,22.62,134.08,134.02,16.3115]
[1718858043859,7.4574,134.1,134.02,16.3115]
[1718858044059,27.4566,134.11,134.02,16.3115]
[1718858044275,20.0,134.11,134.03,0.34]
[1718858044638,7.4558,134.13,134.05,16.0871]
[1718858044948,40.1625578,134.16,134.06,0.34]
[1718858044949,30.0751,134.14,134.06,0.34]
[1718858045138,30.0751,134.14,134.06,0.51]
[1718858045967,22.62,134.14,134.06,0.51]
[1718858046339,18.6346,134.16,134.08,6.2947]
[1718858046533,22.62,134.14,134.08,6.2947]
[1718858046862,7.4563,134.12,134.08,6.2947]
[1718858047270,7.4556,134.13,134.08,6.2947]
[1718858047580,7.456,134.12,134.08,6.2947]
[1718858047868,7.4556,134.13,134.08,6.2947]
[1718858049880,7.456,134.12,134.08,6.2947]
[1718858050943,7.4555,134.13,134.08,6.2947]
[1718858051263,7.4549,134.14,134.08,6.2947]
[1718858051764,7.455,134.14,134.08,6.2947]
[1718858051948,30.42159389,134.19,134.08,6.2947]
[1718858051949,49.05199389,134.19,134.08,6.2947]
[1718858052136,7.4553,134.14,134.08,6.2947]
[1718858052458,7.4543,134.15,134.08,6.2947]
[1718858053241,7.4549,134.14,134.08,6.2947]